Workbook

Sheet 0
B2: CRM - SISTEMA CONSOLIDA E RINFORZA
B4: La soluzione tecnica proposta e i dati riportati vengono forniti esclusivamente a titolo di servizio Tecnico-Commerciale nell’ambito dell’attività di vendita esercitata da Ferri SRL.; i medesimi dati non costituiscono in alcun modo specifica tecnica e sono puramente indicativi in quanto risultanti dalla elaborazione dei dati base di “input” (a titolo esemplificativo: tipologia di muratura, spessore della muratura, livello di conoscenza, parametri migliorativi, etc.) forniti dal Cliente. Ferri SRL è azienda unicamente fornitrice dei materiali per uso professionale e non può ad alcun titolo ritenersi responsabile della correttezza e adeguatezza del dimensionamento della sezione composta e della relazione tecnica allo specifico intervento nel quale il Cliente intende utilizzare gli elementi di consolidamento. Sono di esclusiva competenza e responsabilità del Cliente la valutazione e la verifica di adeguatezza, congruità, adattabilità e utilizzabilità del presente documento tecnico all’impiego previsto; il Cliente solleva ed esonera pertanto Ferri SRL da ogni responsabilità al riguardo. La presente relazione tecnica non può in alcun modo essere utilizzata per il deposito presso gli Uffici Tecnici competenti. La verifica di correttezza e adeguatezza della relazione tecnica allo specifico intervento nel quale il Cliente intende utilizzare gli elementi di consolidamento deve sempre essere valutata e certificata da un professionista tecnico abilitato ai sensi di legge.
B21: Versione programma: | D21: 1.01 | L21: 2021-03-01
C25: via Emilia Ovest, 58 – Rimale 43036 Fidenza (PR) | J25: www.ferrimix.it
C26: +39 0524 520312 | J26: infoferri@ferrimix.it
C27: +39 0524 520314

Sheet 1
G3: DEFINIZIONE MURATURA ESISTENTE
C9: Tipologia di muratura secondo NTC | G9: Muratura in pietrame disordinata
C11: Spessore del paramento
D14: Livello di conoscenza | I14: Parametri migliorativi
E15: Sceglere il livello di conoscenza raggiunto per la muratura oggetto d'intervento
C20: Caratteristiche meccaniche muratura esistente
C21: Resistenza media a compressione | J21: f | K21: ='1'!HD136 -> 1 | L21: N/mm2
C22: Resistenza media a taglio in assenza di sforzi normali | J22: τ0 | K22: ='1'!HF136 -> 0.018 | L22: N/mm2
C23: Valore medio del modulo di elasticità normale | J23: E | K23: ='1'!HJ136 -> 870 | L23: N/mm2
C24: Valore medio del modulo di elasticità tangenziale | J24: G | K24: ='1'!HL136 -> 290 | L24: N/mm2
HD120: f N/mm2 | HF120: t0 N/mm2 | HH120: fv0 N/mm2 | HJ120: E N/mm2 | HL120: G N/mm2 | HN120: w KN/m3 | HQ120: Malta buona | HS120: ricorsi o listature | HU120: connessione trasversale
GW121: Mesistente | HD121: min | HE121: max | HF121: min | HG121: max | HH121: min | HI121: max | HJ121: min | HK121: max | HL121: min | HM121: max | HN121: min | HO121: max | HQ121: TRUE | HR121: FALSE | HS121: TRUE | HT121: FALSE | HU121: TRUE | HV121: FALSE
GW122: Muratura in pietrame disordinata | HD122: 1 | HE122: 2 | HF122: 0.018 | HG122: 0.032 | HH122: - | HI122: - | HJ122: 690 | HK122: 1050 | HL122: 230 | HM122: 350 | HN122: 19 | HO122: 19 | HP122: Muratura in pietrame disordinata | HQ122: 1.5 | HR122: 1 | HS122: 1.3 | HT122: 1 | HU122: 1.5 | HV122: 1
GW123: Muratura a conci sbozzati, con paramenti di spessore disomogeneo | HD123: 2 | HE123: 2 | HF123: 0.035 | HG123: 0.051 | HH123: - | HI123: - | HJ123: 1020 | HK123: 1440 | HL123: 340 | HM123: 480 | HN123: 20 | HO123: 20 | HP123: Muratura a conci sbozzati, con paramenti di spessore disomogeneo | HQ123: 1.4 | HR123: 1 | HS123: 1.2 | HT123: 1 | HU123: 1.5 | HV123: 1
GW124: Muratura in pietre a spacco con buona tessitura | HD124: 2.6 | HE124: 3.8 | HF124: 0.056 | HG124: 0.074 | HH124: - | HI124: - | HJ124: 1500 | HK124: 1980 | HL124: 500 | HM124: 660 | HN124: 21 | HO124: 21 | HP124: Muratura in pietre a spacco con buona tessitura | HQ124: 1.3 | HR124: 1 | HS124: 1.1 | HT124: 1 | HU124: 1.3 | HV124: 1
GW125: Muratura irregolare di pietra tenera | HD125: 1.4 | HE125: 2.2 | HF125: 0.028 | HG125: 0.042 | HH125: - | HI125: - | HJ125: 900 | HK125: 1260 | HL125: 300 | HM125: 420 | HN125: 14.5 | HO125: 14.5 | HP125: Muratura irregolare di pietra tenera | HQ125: 1.5 | HR125: 1 | HS125: 1.2 | HT125: 1 | HU125: 1.3 | HV125: 1
GW126: Muratura a conci regolari di pietra tenera | HD126: 2 | HE126: 3.2 | HF126: 0.04 | HG126: 0.08 | HH126: 0.1 | HI126: 0.19 | HJ126: 1200 | HK126: 1620 | HL126: 400 | HM126: 500 | HN126: 14.5 | HO126: 14.5 | HP126: Muratura a conci regolari di pietra tenera | HQ126: 1.6 | HR126: 1 | HS126: 1 | HT126: 1 | HU126: 1.2 | HV126: 1
GW127: Muratura a blocchi lapidei squadrati | HD127: 5.8 | HE127: 8.2 | HF127: 0.09 | HG127: 0.12 | HH127: 0.18 | HI127: 0.28 | HJ127: 2400 | HK127: 3300 | HL127: 800 | HM127: 1100 | HN127: 22 | HO127: 22 | HP127: Muratura a blocchi lapidei squadrati | HQ127: 1.2 | HR127: 1 | HS127: 1 | HT127: 1 | HU127: 1.2 | HV127: 1
GW128: Muratura in mattoni pieni e malta di calce | HD128: 2.6 | HE128: 4.3 | HF128: 0.05 | HG128: 0.13 | HH128: 0.13 | HI128: 0.27 | HJ128: 1200 | HK128: 1800 | HL128: 400 | HM128: 600 | HN128: 18 | HO128: 18 | HP128: Muratura in mattoni pieni e malta di calce | HQ128: =HD135^0.35 -> 1 | HR128: 1 | HS128: 1 | HT128: 1 | HU128: 1.3 | HV128: 1
GW129: Muratura in mattoni semipieni con malta cementizia | HD129: 5 | HE129: 8 | HF129: 0.08 | HG129: 0.17 | HH129: 0.2 | HI129: 0.36 | HJ129: 3500 | HK129: 5600 | HL129: 875 | HM129: 1400 | HN129: 15 | HO129: 15 | HP129: Muratura in mattoni semipieni con malta cementizia | HQ129: 1.2 | HR129: 1 | HS129: 1 | HT129: 1 | HU129: 1 | HV129: 1
HD130: =VLOOKUP($G$9,$GW$122:$HO$129,8,FALSE) -> 1 | HE130: =VLOOKUP($G$9,$GW$122:$HO$129,9,FALSE) -> 2 | HF130: =VLOOKUP($G$9,$GW$122:$HO$129,10,FALSE) -> 0.018 | HG130: =VLOOKUP($G$9,$GW$122:$HO$129,11,FALSE) -> 0.032 | HH130: =VLOOKUP($G$9,$GW$122:$HO$129,12,FALSE) -> - | HI130: =VLOOKUP($G$9,$GW$122:$HO$129,13,FALSE) -> - | HJ130: =VLOOKUP($G$9,$GW$122:$HO$129,14,FALSE) -> 690 | HK130: =VLOOKUP($G$9,$GW$122:$HO$129,15,FALSE) -> 1050 | HL130: =VLOOKUP($G$9,$GW$122:$HO$129,16,FALSE) -> 230 | HM130: =VLOOKUP($G$9,$GW$122:$HO$129,17,FALSE) -> 350 | HN130: =VLOOKUP($G$9,$GW$122:$HO$129,18,FALSE) -> 19 | HO130: =VLOOKUP($G$9,$GW$122:$HO$129,19,FALSE) -> 19 | HQ130: =VLOOKUP($G$9,$HP$122:$HV$129,2,FALSE) -> 1.5 | HR130: =VLOOKUP($G$9,$HP$122:$HV$129,3,FALSE) -> 1 | HS130: =VLOOKUP($G$9,$HP$122:$HV$129,4,FALSE) -> 1.3 | HT130: =VLOOKUP($G$9,$HP$122:$HV$129,5,FALSE) -> 1 | HU130: =VLOOKUP($G$9,$HP$122:$HV$129,6,FALSE) -> 1.5 | HV130: =VLOOKUP($G$9,$HP$122:$HV$129,7,FALSE) -> 1
GY132: 1 | GZ132: =VLOOKUP(GY132,HB132:HC134,2) -> LC1 | HB132: 1 | HC132: LC1 | HD132: =MIN(HD130:HE130) -> 1 | HF132: =MIN(HF130:HG130) -> 0.018 | HH132: =MIN(HH130:HI130) -> 0 | HJ132: =AVERAGE(HJ130:HK130) -> 870 | HL132: =AVERAGE(HL130:HM130) -> 290 | HQ132: Malta | HS132: ricorsi | HU132: conn | HY132: Coeff migliorativi
HB133: 2 | HC133: LC2 | HD133: 0 | HF133: 0 | HH133: =AVERAGE(HH130:HI130) ->  | HJ133: 0 | HL133: 0 | HP133: TRUE | HQ133: =HQ130 -> 1.5 | HS133: =HS130 -> 1.3 | HU133: =HU130 -> 1.5 | HY133: FALSE | HZ133: malta buona
HB134: 3 | HC134: LC3 | HP134: FALSE | HQ134: =HR130 -> 1 | HS134: =HT130 -> 1 | HU134: =HV130 -> 1 | HY134: FALSE | HZ134: ricorsi o listature
HD135: =VLOOKUP($GZ$132,$HC$132:$HM$133,2,FALSE) -> 1 | HF135: =VLOOKUP($GZ$132,$HC$132:$HM$133,4,FALSE) -> 0.018 | HH135: =VLOOKUP($GZ$132,$HC$132:$HM$133,6,FALSE) -> 0 | HJ135: =VLOOKUP($GZ$132,$HC$132:$HM$133,8,FALSE) -> 870 | HL135: =VLOOKUP($GZ$132,$HC$132:$HM$133,10,FALSE) -> 290 | HQ135: =VLOOKUP($HY$133,$HP$133:$HV$134,2,FALSE) -> 1 | HS135: =VLOOKUP($HY$134,$HP$133:$HV$134,4,FALSE) -> 1 | HU135: =VLOOKUP($HY$135,$HP$133:$HV$134,6,FALSE) -> 1 | HY135: FALSE | HZ135: connessione trasversale
HD136: =(HQ135*HS135*HU135)/MIN(HQ135,HS135,HU135)*HD135 -> 1 | HF136: =(HQ135*HS135*HU135)/MIN(HQ135,HS135,HU135)*HF135 -> 0.018 | HJ136: =HQ135*HJ135 -> 870 | HL136: =HL135*HQ135 -> 290
GY137: Spessore muratura
GY138: 300
GW140: Mesistente | HD140: b | HE140: b' | HG140: Intonaci | HJ140: fflex N/mm2 | HL140: Eint N/mm2 | HN140: tmin mm | HP140: ft N/mm2 | HQ140: fc N/mm2 | HS140: Reti | HU140: ftmrete N | HV140: fcrete | HW140: Erete | HX140: passo mm | HY140: sez. mm2 | HZ140: Ear
GW141: Muratura in pietrame disordinata | HD141: 1.5 | HE141: 1.4 | HG141: FM55 | HJ141: 5 | HL141: 9000 | HN141: 15 | HP141: =HJ141/1.4 -> 3.571428571 | HQ141: 15 | HS141: RG NET BA G33 | HU141: 4500 | HW141: 40000 | HX141: 33 | HY141: 7.065 | HZ141: =HW141*HY141 -> 282600
GW142: Muratura a conci sbozzati, con paramenti di spessore disomogeneo | HD142: 1.5 | HE142: 1.4 | HG142: BETM35-FIBRO | HJ142: 8 | HL142: 39000 | HN142: 15 | HP142: =HJ142/1.4 -> 5.714285714 | HQ142: 35 | HS142: RG NET BA G66 | HU142: 4500 | HW142: 40000 | HX142: 66 | HY142: 7.065 | HZ142: =HW142*HY142 -> 282600
GW143: Muratura in pietre a spacco con buona tessitura | HD143: 1.5 | HE143: 1.2 | HG143: BETM35-MEC | HJ143: 7 | HL143: 39000 | HN143: 15 | HP143: =HJ143/1.4 -> 5 | HQ143: 35 | HS143: RG NET BA G99 | HU143: 4500 | HW143: 40000 | HX143: 99 | HY143: 7.065 | HZ143: =HW143*HY143 -> 282600
GW144: Muratura irregolare di pietra tenera | HD144: 1.5 | HE144: 1.2 | HG144: FM55 | HJ144: =VLOOKUP($HG$144,$HG$141:$HQ$143,4,FALSE) -> 5 | HL144: =VLOOKUP($HG$144,$HG$141:$HQ$143,6,FALSE) -> 9000 | HN144: =VLOOKUP($HG$144,$HG$141:$HQ$143,8,FALSE) -> 15 | HP144: =VLOOKUP($HG$144,$HG$141:$HQ$143,10,FALSE) -> 3.571428571 | HQ144: =VLOOKUP($HG$144,$HG$141:$HQ$143,11,FALSE) -> 15 | HS144: RG NET BA G33 | HU144: =VLOOKUP($HS$144,$HS$141:$HZ$143,3,FALSE) -> 4500 | HW144: =VLOOKUP($HS$144,$HS$141:$HZ$143,5,FALSE) -> 40000 | HX144: =VLOOKUP($HS$144,$HS$141:$HZ$143,6,FALSE) -> 33 | HY144: =VLOOKUP($HS$144,$HS$141:$HZ$143,7,FALSE) -> 7.065 | HZ144: =VLOOKUP($HS$144,$HS$141:$HZ$143,8,FALSE) -> 282600
GW145: Muratura a conci regolari di pietra tenera | HD145: 1.5 | HE145: 1.2
GW146: Muratura a blocchi lapidei squadrati | HD146: 1.5 | HE146: 1.2
GW147: Muratura in mattoni pieni e malta di calce | HD147: 1.3 | HE147: 1
GW148: Muratura in mattoni semipieni con malta cementizia | HD148: 1.3 | HE148: 1
GW149: =G9 -> Muratura in pietrame disordinata | HD149: =VLOOKUP($GW$149,$GW$141:$HE$148,8,FALSE) -> 1.5 | HE149: =VLOOKUP($GW$149,$GW$141:$HE$148,9,FALSE) -> 1.4 | HG149: Connettori | HN149: TEST
HG150: 1 | HJ150: spessore intonaco | HN150: =IF(AND('3'!C37="Malta bilanciata",'3'!C38="Rete bilanciata"),"V","F") -> F | HO150: =IF(HK151<=50,"V","F") -> V
GW151: Sacco | GX151: b | GY151: b' | HG151: 2 | HJ151: 30 | HK151: =VALUE(HJ151) -> 30 | HN151: =IF('3'!K15>=30,"V","F") -> V
GW152: TRUE | GX152: 1 | GY152: 1.2 | HG152: 3
GW153: FALSE | GX153: =HD149 -> 1.5 | GY153: =HE149 -> 1.4 | HG153: 4
GW154: FALSE | GX154: =VLOOKUP($GW$154,$GW$152:$GY$153,2,FALSE) -> 1.5 | GY154: =VLOOKUP($GW$154,$GW$152:$GY$153,3,FALSE) -> 1.4 | HG154: 5
HG155: 6
GW156: facce | GX156: i1 | GY156: i2 | GZ156: i3 | HA156: g1 | HB156: g2 | HG156: 6
GW157: 2 | GX157: 1 | GY157: 0 | GZ157: 2 | HA157: 1 | HB157: 2
GW158: 1 | GX158: 0 | GY158: 0 | GZ158: 1 | HA158: 0 | HB158: 1
GW159: 1 | GX159: =VLOOKUP($GW$159,$GW$157:$GZ$158,2,FALSE) -> 0 | GY159: =VLOOKUP($GW$159,$GW$157:$GZ$158,3,FALSE) -> 0 | GZ159: =VLOOKUP($GW$159,$GW$157:$GZ$158,4,FALSE) -> 1 | HA159: =VLOOKUP($GW$159,$GW$157:$HB$158,5,FALSE) -> 0 | HB159: =VLOOKUP($GW$159,$GW$157:$HB$158,6,FALSE) -> 1
GW161: tau | HB161: compressione | HP161: csi
GW162: =(1+($GX$159*($GX$154-1)+$GY$159*($GY$154-1)))*1.5*$HF$136 -> 0.027 | GX162: =$GZ$159*($HP$144*$HJ$151/$GY$138+$HZ$144*'2'!$K$20/($GY$138*$HX$144)) -> 0.3684704185 | HB162: connessione trasversale | HE162: =VLOOKUP($HY$135,HB168:HC169,2,FALSE) -> 2 | HG162: Muratura in pietrame disordinata | HO162: 1.5 | HP162: 1.5
HB163: intervento su due facce | HE163: =$GW$159 -> 1 | HG163: Muratura a conci sbozzati, con paramenti di spessore disomogeneo | HO163: 1.5 | HP163: 1.5
GW164: =($GW$162+$GX$162)/1.5/1 -> 0.2636469456 | GX164: =3.5*HF136 -> 0.063 | HB164: Numero di connett. | HE164: =$HG$156 -> 6 | HG164: Muratura in pietre a spacco con buona tessitura | HO164: 1.05 | HP164: 1.5
HB165: k3 | HE165: =VLOOKUP(GW149,HG162:HO170,9,FALSE) -> 1.5 | HG165: Muratura irregolare di pietra tenera | HO165: 1.05 | HP165: 1.5
HB166: k | HE166: =IF(AND($HE$162=2,$HE$163=2,VALUE($HE$164)=6),HE165,1) -> 1 | HG166: Muratura a conci regolari di pietra tenera | HO166: 1.05 | HP166: 1.5
GW167: E | GX167: =$GW$168+$GX$168 -> 650 | HG167: Muratura a blocchi lapidei squadrati | HO167: 1.05 | HP167: 1.5
GW168: =(1+$HA$159*($HP$170-1))*$HL$136 -> 290 | GX168: =$HB$159*(0.4*$HL$144*$HJ$151/$GY$138) -> 360 | HB168: TRUE | HC168: 1 | HG168: Muratura in mattoni pieni e malta di calce | HO168: 1.05 | HP168: 1.3
HB169: FALSE | HC169: 2 | HG169: Muratura in mattoni semipieni con malta cementizia | HO169: 1 | HP169: 1.3
HP170: =VLOOKUP(GW149,HG162:HP169,10,FALSE) -> 1.5

Sheet 2
G3: DEFINIZIONE DEL RINFORZO
C7: Tipologia d'intervento | G7: Paramento a sacco
C12: CARATTERISTICHE DELL'INTONACO
C15: Tipologia intonaco | I15: Spessore intonaco
C17: Parametri meccanici intonaco
C18: Resistenza a trazione | J18: ft,int | K18: ='1'!$HP$144 -> 3.571428571 | L18: N/mm2
C19: Modulo elastico | J19: Eint | K19: ='1'!$HL$144 -> 9000 | L19: N/mm2
C20: Rapporto f/E | J20: εint | K20: =$K$18/$K$19 -> 0.0003968253968
C21: Resistenza a compressione | J21: fc | K21: ='1'!$HQ$144 -> 15 | L21: N/mm2
C24: CARATTERISTICHE RETE
C27: Tipologia rete | J27: Connettori al m2
C29: Parametri meccanici rete
C30: Resistenza a trazione | J30: ft,rete | K30: ='1'!$HU$144 -> 4500 | L30: N
C31: Rigidezza assiale | J31: EAr | K31: ='1'!$HZ$144 -> 282600 | L31: N/mm2
C32: Passo della maglia | J32: p | K32: ='1'!$HX$144 -> 33 | L32: mm

Sheet 3
G3: MURATURA RINFORZATA
C8: RIEPILOGO PARAMETRI IMMESSI
C11: Tipologia di muratura | F11: ='1'!$G$9 -> Muratura in pietrame disordinata
C13: Spessore muratura | E13: ='1'!$GY$138 -> 300 | F13: mm | H13: Livello di conoscenza | K13: ='1'!$GZ$132 -> LC1
C15: Tipologia intonaco | E15: ='1'!$HG$144 -> FM55 | I15: Spessore intonaco | K15: ='1'!$HJ$151 -> 30 | L15: mm
C17: Tipologia rete | E17: ='1'!$HS$144 -> RG NET BA G33 | I17: Connettori al m2 | K17: ='1'!$HG$156 -> 6
C20: CARATTERISTICHE MECCANICHE MURATURA RINFORZATA
C23: Parametri meccanici muratura rinforzata
C24: Resistenza a compressione | J24: fm,r | K24: ='1'!$HD$136*'1'!$HE$166 -> 1 | L24: N/mm2
C25: Incremento massimo consentito | F25: ='1'!HE165-1 -> 0.5 | G25: Incremento conseguito | J25: ='3'!K24/'1'!HD136-1 -> 0
C27: Resistenza a taglio | J27: τ0,r | K27: =MIN('1'!$GW$164:$GX$164) -> 0.063 | L27: N/mm2
C28: Incremento massimo consentito | F28: 2.5 | G28: Incremento conseguito | J28: ='3'!K27/'1'!HF136-1 -> 2.5
C30: Modulo di elasticità normale | J30: Em,r | K30: =K33/0.4 -> 1625 | L30: N/mm2
C31: Incremento conseguito | F31: =K30/'1'!HJ136-1 -> 0.867816092
C33: Modulo di elasticità tangenziale | J33: Gm,r | K33: ='1'!GX167 -> 650 | L33: N/mm2
C34: Incremento conseguito | F34: =K33/'1'!HL136-1 -> 1.24137931
C36: Bilanciamento intervento
C37: =IF(AND(K37>0.6),"Intonaco bilanciato","ATTENZIONE-ERRORE modificare rinforzo") -> Intonaco bilanciato | J37: δ1 | K37: =0.5*('2'!$K$21*'1'!$HJ$151)/(1.5*'1'!GW164*('1'!$HJ$151+'1'!$GY$138)) -> 1.724068729
C38: =IF(AND('3'!K38>0.6),"Rete bilanciata","ATTENZIONE-ERRORE modificare rinforzo") -> Rete bilanciata | J38: δ2 | K38: =2*('2'!$K$30)/(1.5*'1'!GW164*('1'!$GY$138+'1'!$HJ$151)*'2'!$K$32) -> 2.089780278
C39: Rapporto di bilanciamento (si consigliano valori >1.00) | J39: δ3 | K39: =K37/K38 -> 0.825
C41: =IF(AND(K37>0.6,K38>0.6),"Rinforzo dimensionato correttamente","Errore nel progetto") -> Rinforzo dimensionato correttamente
